fUST/lending_fUST_20250623
["ID","MTS","AMOUNT","RATE_DAILY","PERIOD"]
[367049341,1750636254130,-517.00462772,0.00024973,2]
[367049343,1750636254139,-500.0,0.00024973,2]
[367049345,1750636254149,-500.0,0.00024973,2]
[367049347,1750636254167,-500.0,0.00024973,2]
[367049349,1750636254176,-500.0,0.00024973,2]
[367049351,1750636254186,-500.0,0.00024973,2]
[367049353,1750636254196,-500.0,0.00024973,2]
[367049355,1750636254205,-500.0,0.00024973,2]
[367049357,1750636254215,-500.0,0.00024973,2]
[367049359,1750636254225,-487.07405773,0.00024973,2]
[367049361,1750636254236,-500.0,0.00024973,2]
[367049363,1750636254246,-560.35633233,0.00024973,2]
[367049365,1750636254256,-500.0,0.00024973,2]
[367049367,1750636254266,-500.0,0.00024973,2]
[367049369,1750636254276,-600.0,0.00024973,2]
[367049371,1750636254285,-500.0,0.00024973,2]
[367049373,1750636254295,-500.0,0.00024973,2]
[367049375,1750636254304,-492.55107155,0.00024973,2]
[367049377,1750636254314,-503.18969141,0.00024973,2]
[367049380,1750636254323,-500.0,0.00024973,2]
[367049382,1750636254334,-340.25694793,0.00024973,2]
[367049384,1750636254344,-500.0,0.00024973,2]
[367049386,1750636254354,-500.0,0.00024973,2]
[367049388,1750636254364,-500.0,0.00024973,2]
[367049390,1750636254374,-581.75668213,0.00024973,2]
[367049392,1750636254383,-500.0,0.00024973,2]
[367049394,1750636254393,-500.0,0.00024973,2]
[367049396,1750636254403,-500.0,0.00024973,2]
[367049398,1750636254413,-500.0,0.00024973,2]
[367049400,1750636254422,-500.0,0.00024973,2]
[367049402,1750636254432,-500.0,0.00024973,2]
[367049404,1750636254443,-153.07575854,0.00024973,2]
[367049406,1750636254454,-2846.67395427,0.0002498,2]
[367049408,1750636254463,-867.0,0.00024987,2]
[367049410,1750636254474,-500.0,0.00024987,2]
[367049412,1750636254483,-81650.08163126,0.0002499,2]
[367049415,1750636254493,-151.0,0.0002499,7]
[367049417,1750636254503,-185.60636,0.0002499,7]
[367049419,1750636254512,-185.60636,0.0002499,7]
[367049421,1750636254522,-460.0,0.00024999,2]
[367049423,1750636254532,-3758.76,0.00024999,2]
[367049425,1750636254541,-1604.83,0.00024999,2]
[367049427,1750636254551,-736.59,0.00024999,2]
[367049429,1750636254561,-939.93,0.00024999,2]
[367049431,1750636254572,-239.14999073,0.00024999,2]
[367049432,1750636254582,-447.10575592,0.00024999,2]
[367049442,1750636279998,150.0,0.00025,60]
[367049443,1750636400910,150.0,0.00025,30]
[367049444,1750636495990,2550.0,0.00025,120]
[367049446,1750636841470,256.905084,0.00013699,2]
[367049447,1750636842339,-153.64103414,0.00020187,2]
[367049448,1750636904556,1839.99999999,0.00025,120]
[367049449,1750636918158,460.0,0.00025,120]
[367049450,1750636941548,1380.0,0.00025,120]
[367049456,1750637140275,-103.26404986,0.00020187,2]
[367049457,1750637140298,-300.0,0.00021731,2]
[367049458,1750637140320,-300.0,0.00021731,2]
[367049459,1750637140342,-300.0,0.00021731,2]
[367049460,1750637140364,-1200.0,0.00021731,2]
[367049461,1750637140387,-777.21562867,0.00021732,2]
[367049462,1750637158080,-1339.37056876,0.00021732,2]
[367049463,1750637226092,-300.0,0.00021731,2]
[367049464,1750637226126,-300.0,0.00021731,2]
[367049465,1750637226153,-1485.41218414,0.00021732,2]
[367049466,1750637230086,-3121.67397817,0.00021732,2]
[367049467,1750637235091,-2143.40236835,0.00021732,2]
[367049468,1750637244121,-1239.59352868,0.00021732,2]
[367049469,1750637349140,-14793.33174323,0.00021732,2]
[367049470,1750637349163,-309.848,0.00021747,2]
[367049471,1750637349193,-1226.49954443,0.000219,6]
[367049472,1750637349221,-500.0,0.00021916,2]
[367049473,1750637349247,-417.9876161,0.00021916,2]
[367049474,1750637349274,-500.0,0.00021916,2]
[367049475,1750637349296,-940.3867489,0.00021917,2]
[367049476,1750637349318,-460.0,0.00021917,2]
[367049477,1750637349344,-460.0,0.00021917,2]
[367049478,1750637349366,-595.76,0.00021917,2]
[367049479,1750637349387,-1232.79,0.00021917,2]
[367049480,1750637349408,-460.0,0.00021917,2]
[367049481,1750637349430,-460.0,0.00021917,2]
[367049482,1750637349450,-460.0,0.00021917,2]
[367049483,1750637349472,-460.0,0.00021917,2]
[367049484,1750637349493,-460.0,0.00021917,2]
[367049485,1750637349515,-460.0,0.00021917,2]
[367049486,1750637349536,-460.0,0.00021917,2]
[367049487,1750637349556,-478.57784085,0.00021917,2]
[367049488,1750637349578,-1164.8,0.00021917,2]
[367049489,1750637349598,-460.0,0.00021917,2]
[367049490,1750637349619,-460.0,0.00021917,2]
[367049491,1750637349640,-460.0,0.00021917,2]
[367049492,1750637349661,-460.0,0.00021917,2]
[367049493,1750637349682,-460.0,0.00021917,2]
[367049494,1750637349705,-460.0,0.00021917,2]
[367049495,1750637349726,-521.29,0.00021917,2]
[367049496,1750637349747,-460.0,0.00021917,2]
[367049497,1750637349768,-489.78,0.00021917,2]
[367049498,1750637349788,-460.0,0.00021917,2]
[367049499,1750637349809,-460.0,0.00021917,2]
[367049500,1750637349829,-460.0,0.00021917,2]
[367049501,1750637349851,-460.0,0.00021917,2]
[367049502,1750637349872,-579.82,0.00021917,2]
[367049503,1750637349892,-460.0,0.00021917,2]
[367049504,1750637349912,-460.0,0.00021917,2]
[367049505,1750637349932,-722.34,0.00021917,2]
[367049506,1750637349954,-7652.89,0.00021917,2]
[367049507,1750637349975,-460.0,0.00021917,2]
[367049508,1750637349995,-460.0,0.00021917,2]
[367049509,1750637350015,-460.0,0.00021917,2]
[367049510,1750637350036,-460.0,0.00021917,2]
[367049511,1750637350059,-464.67964733,0.00021917,2]
[367049512,1750637350079,-1248.22,0.00021917,2]
[367049513,1750637350100,-550.59,0.00021917,2]
[367049514,1750637350121,-460.0,0.00021917,2]
[367049515,1750637350142,-460.0,0.00021917,2]
[367049516,1750637350162,-460.0,0.00021917,2]
[367049517,1750637350184,-460.0,0.00021917,2]
[367049518,1750637350204,-460.0,0.00021917,2]
[367049519,1750637350226,-460.0,0.00021917,2]
[367049520,1750637350247,-500.0,0.00021917,2]
[367049521,1750637350272,-460.0,0.00021917,2]
[367049522,1750637350294,-460.0,0.00021917,2]
[367049523,1750637350315,-460.0,0.00021917,2]
[367049524,1750637350339,-543.77,0.00021917,2]
[367049525,1750637350359,-460.0,0.00021917,2]
[367049526,1750637350379,-460.0,0.00021917,2]
[367049527,1750637350400,-460.0,0.00021917,2]
[367049528,1750637350422,-460.0,0.00021917,2]
[367049529,1750637350442,-460.0,0.00021917,2]
[367049530,1750637350466,-6734.28,0.00021917,2]
[367049531,1750637350487,-460.0,0.00021917,2]
[367049532,1750637350507,-460.0,0.00021917,2]
[367049533,1750637350528,-460.0,0.00021917,2]
[367049534,1750637350550,-460.0,0.00021917,2]
[367049535,1750637350572,-6501.89,0.00021917,2]
[367049536,1750637350593,-504.2843535,0.00021917,2]
[367049537,1750637350614,-460.0,0.00021917,2]
[367049538,1750637350635,-2195.08,0.00021917,2]
[367049539,1750637350657,-502.89,0.00021917,2]
[367049540,1750637350679,-460.0,0.00021917,2]
[367049541,1750637350700,-1416.17,0.00021917,2]
[367049542,1750637350722,-807.08,0.00021917,2]
[367049543,1750637350744,-460.0,0.00021917,2]
[367049544,1750637350766,-460.0,0.00021917,2]
[367049545,1750637350791,-872.07,0.00021917,2]
[367049546,1750637350813,-460.0,0.00021917,2]
[367049547,1750637350838,-460.0,0.00021917,2]
[367049548,1750637350859,-471.07,0.00021917,2]
[367049549,1750637350880,-460.0,0.00021917,2]
[367049550,1750637350900,-555.51,0.00021917,2]
[367049551,1750637350920,-555.51,0.00021917,2]
[367049552,1750637350942,-400.0,0.00021918,7]
[367049553,1750637350971,-855.91656328,0.00022072,6]
[367049554,1750637362112,-5866.52,0.00021917,2]
[367049555,1750637362134,-496.59,0.00021917,2]
[367049556,1750637362155,-460.0,0.00021917,2]
[367049557,1750637362184,-370.5829809,0.00022072,6]
[367049558,1750637362207,-4012.96,0.00022181,10]
[367049559,1750637362229,-358.06988817,0.0002219,2]
[367049560,1750637362256,-500.0,0.0002219,2]
[367049561,1750637362278,-500.0,0.0002219,2]
[367049562,1750637362300,-500.0,0.0002219,2]
[367049563,1750637362323,-500.0,0.0002219,2]
[367049564,1750637362348,-500.0,0.0002219,2]
[367049565,1750637362371,-500.0,0.0002219,2]
[367049566,1750637362392,-370.11224569,0.0002219,2]
[367049567,1750637362415,-300.0,0.0002219,2]
[367049568,1750637362435,-460.0,0.00022191,2]
[367049569,1750637362454,-460.0,0.00022191,2]
[367049570,1750637362476,-595.76,0.00022191,2]
[367049571,1750637362497,-1232.79,0.00022191,2]
[367049572,1750637362517,-460.0,0.00022191,2]
[367049573,1750637362538,-373.55744076,0.00022191,2]
[367049574,1750637362558,-460.0,0.00022191,2]
[367049575,1750637362577,-460.0,0.00022191,2]
[367049576,1750637362597,-460.0,0.00022191,2]
[367049577,1750637362617,-347.32576456,0.00022191,2]
[367049578,1750637362637,-460.0,0.00022191,2]
[367049579,1750637362656,-267.56510172,0.00022191,2]
[367049580,1750637370115,-184.958186,0.00021494,2]
[367049581,1750637370137,-4198.34,0.00021917,2]
[367049582,1750637370159,-460.0,0.00021917,2]
[367049583,1750637370180,-460.0,0.00021917,2]
[367049584,1750637370201,-897.23489828,0.00022191,2]
[367049585,1750637370222,-460.0,0.00022191,2]
[367049586,1750637370243,-460.0,0.00022191,2]
[367049587,1750637370268,-460.0,0.00022191,2]
[367049588,1750637370289,-460.0,0.00022191,2]
[367049589,1750637370311,-460.0,0.00022191,2]
[367049590,1750637370333,-521.29,0.00022191,2]
[367049591,1750637370353,-460.0,0.00022191,2]
[367049592,1750637370374,-460.0,0.00022191,2]
[367049593,1750637370395,-546.96746439,0.00022191,2]
[367049594,1750637370415,-460.0,0.00022191,2]
[367049595,1750637370437,-460.0,0.00022191,2]
[367049596,1750637370459,-579.82,0.00022191,2]
[367049597,1750637370479,-547.31274117,0.00022191,2]
[367049598,1750637370501,-460.0,0.00022191,2]
[367049599,1750637370521,-722.34,0.00022191,2]
[367049600,1750637370544,-1060.14847016,0.00022191,2]
[367049601,1750637370595,-6592.74152984,0.00022191,2]
[367049602,1750637370615,-460.0,0.00022191,2]
[367049603,1750637370636,-460.0,0.00022191,2]
[367049604,1750637370655,-460.0,0.00022191,2]
[367049605,1750637370679,-460.0,0.00022191,2]
[367049606,1750637370700,-1248.22,0.00022191,2]
[367049607,1750637370723,-550.59,0.00022191,2]
[367049608,1750637370957,-460.0,0.00022191,2]
[367049609,1750637370979,-460.0,0.00022191,2]
[367049610,1750637371000,-460.0,0.00022191,2]
[367049611,1750637371020,-460.0,0.00022191,2]
[367049612,1750637371041,-460.0,0.00022191,2]
[367049613,1750637371062,-460.0,0.00022191,2]
[367049614,1750637371082,-500.0,0.00022191,2]
[367049615,1750637371103,-460.0,0.00022191,2]
[367049616,1750637371123,-460.0,0.00022191,2]
[367049617,1750637371144,-460.0,0.00022191,2]
[367049618,1750637371165,-543.77,0.00022191,2]
[367049619,1750637371187,-167.75715712,0.00022191,2]
[367049620,1750637371208,-460.0,0.00022191,2]
[367049621,1750637371229,-460.0,0.00022191,2]
[367049622,1750637371250,-460.0,0.00022191,2]
[367049623,1750637371275,-460.0,0.00022191,2]
[367049624,1750637371299,-5705.10931045,0.00022191,2]
[367049644,1750637432324,-254.87,0.00021916,2]
[367049646,1750637432424,-45.13,0.00021916,2]
[367049647,1750637432434,-300.0,0.00021916,2]
[367049648,1750637432444,-462.71,0.00021916,2]
[367049649,1750637432456,-737.29,0.00021916,2]
[367049650,1750637432465,-460.0,0.00021917,2]
[367049651,1750637432474,-460.0,0.00021917,2]
[367049652,1750637432484,-689.73,0.00021917,2]
[367049653,1750637432493,-7146.33,0.00021917,2]
[367049654,1750637432503,-460.0,0.00021917,2]
[367049655,1750637432512,-8131.65,0.00021917,2]
[367049656,1750637432523,-460.0,0.00021917,2]
[367049657,1750637432533,-1213.54,0.00021917,2]
[367049658,1750637432542,-1764.07,0.00021917,2]
[367049660,1750637432552,-460.0,0.00021917,2]
[367049662,1750637432561,-246.32805147,0.00021917,2]
[367049664,1750637432570,-460.0,0.00021917,2]
[367049665,1750637432580,-460.0,0.00021917,2]
[367049667,1750637432589,-460.0,0.00021917,2]
[367049669,1750637432598,-460.0,0.00021917,2]
[367049671,1750637432608,-460.0,0.00021917,2]
[367049673,1750637432617,-1955.05232683,0.00021917,2]
[367049721,1750637439543,-1292.47767317,0.00021917,2]
[367049722,1750637439553,-438.56497545,0.00021917,2]
[367049723,1750637439562,-546.11,0.00021917,2]
[367049724,1750637439572,-1268.62,0.00021917,2]
[367049725,1750637439581,-460.0,0.00021917,2]
[367049726,1750637439591,-460.0,0.00021917,2]
[367049727,1750637439601,-1029.17068955,0.00022191,2]
[367049728,1750637439611,-289.43529922,0.00022191,2]
[367049729,1750637439621,-460.0,0.00022191,2]
[367049730,1750637439630,-460.0,0.00022191,2]
[367049731,1750637439639,-460.0,0.00022191,2]
[367049732,1750637439649,-6501.89,0.00022191,2]
[367049733,1750637439658,-460.0,0.00022191,2]
[367049734,1750637439668,-2195.08,0.00022191,2]
[367049735,1750637439679,-502.89,0.00022191,2]
[367049736,1750637439688,-1416.17,0.00022191,2]
[367049737,1750637439698,-807.08,0.00022191,2]
[367049738,1750637439707,-460.0,0.00022191,2]
[367049739,1750637439716,-460.0,0.00022191,2]
[367049740,1750637439726,-872.07,0.00022191,2]
[367049741,1750637439736,-460.0,0.00022191,2]
[367049742,1750637439746,-471.07,0.00022191,2]
[367049743,1750637439756,-380.44955845,0.00022191,2]
[367049744,1750637439765,-555.51,0.00022191,2]
[367049746,1750637439776,-555.51,0.00022191,2]
[367049748,1750637439785,-5866.52,0.00022191,2]
[367049750,1750637439794,-496.59,0.00022191,2]
[367049752,1750637439804,-4198.34,0.00022191,2]
[367049753,1750637439813,-460.0,0.00022191,2]
[367049754,1750637439823,-460.0,0.00022191,2]
[367049755,1750637439832,-313.09,0.00022191,2]
[367049756,1750637439841,-460.0,0.00022191,2]
[367049757,1750637439851,-689.73,0.00022191,2]
[367049758,1750637439860,-7146.33,0.00022191,2]
[367049759,1750637439870,-8131.65,0.00022191,2]
[367049760,1750637439879,-309.65347279,0.00022191,2]
[367049761,1750637439889,-1213.54,0.00022191,2]
[367049762,1750637439899,-1764.07,0.00022191,2]
[367049763,1750637439909,-460.0,0.00022191,2]
[367049764,1750637439918,-460.0,0.00022191,2]
[367049765,1750637439928,-577.72705857,0.00022191,2]
[367049766,1750637439940,-460.0,0.00022191,2]
[367049767,1750637439952,-460.0,0.00022191,2]
[367049768,1750637439962,-460.0,0.00022191,2]
[367049769,1750637439971,-3247.53,0.00022191,2]
[367049770,1750637439981,-546.11,0.00022191,2]
[367049771,1750637439991,-1268.62,0.00022191,2]
[367049772,1750637440000,-460.0,0.00022191,2]
[367049773,1750637440010,-460.0,0.00022191,2]
[367049774,1750637440019,-3344.14,0.00022455,10]
[367049775,1750637440030,-2786.78,0.00022455,10]
[367049776,1750637440040,-250.64892172,0.00022464,2]
[367049777,1750637440050,-500.0,0.00022464,2]
[367049778,1750637440059,-500.0,0.00022464,2]
[367049779,1750637440069,-269.07857198,0.00022464,2]
[367049780,1750637440078,-500.0,0.00022464,2]
[367049781,1750637440087,-500.0,0.00022464,2]
[367049782,1750637440097,-460.0,0.00022465,2]
[367049783,1750637440106,-460.0,0.00022465,2]
[367049784,1750637440115,-1232.79,0.00022465,2]
[367049785,1750637440125,-460.0,0.00022465,2]
[367049786,1750637440134,-460.0,0.00022465,2]
[367049787,1750637440144,-460.0,0.00022465,2]
[367049788,1750637440153,-368.0420577,0.00022465,2]
[367049789,1750637440163,-460.0,0.00022465,2]
[367049790,1750637440172,-1164.8,0.00022465,2]
[367049791,1750637440182,-460.0,0.00022465,2]
[367049792,1750637440191,-460.0,0.00022465,2]
[367049794,1750637440201,-460.0,0.00022465,2]
[367049796,1750637440210,-460.0,0.00022465,2]
[367049798,1750637440219,-460.0,0.00022465,2]
[367049800,1750637440229,-521.29,0.00022465,2]
[367049801,1750637440238,-460.0,0.00022465,2]
[367049802,1750637440247,-460.0,0.00022465,2]
[367049803,1750637440257,-460.0,0.00022465,2]
[367049804,1750637440266,-460.0,0.00022465,2]
[367049805,1750637440276,-460.0,0.00022465,2]
[367049806,1750637440288,-722.34,0.00022465,2]
[367049808,1750637440298,-460.0,0.00022465,2]
[367049809,1750637440307,-460.0,0.00022465,2]
[367049810,1750637440316,-283.46067853,0.00022465,2]
[367049811,1750637440326,-460.0,0.00022465,2]
[367049812,1750637440336,-550.59,0.00022465,2]
[367049813,1750637440345,-326.13242427,0.00022465,2]
[367049814,1750637440355,-460.0,0.00022465,2]
[367049815,1750637440365,-460.0,0.00022465,2]
[367049816,1750637440375,-460.0,0.00022465,2]
[367049817,1750637440384,-500.0,0.00022465,2]
[367049818,1750637440394,-460.0,0.00022465,2]
[367049820,1750637440404,-460.0,0.00022465,2]
[367049821,1750637440414,-460.0,0.00022465,2]
[367049822,1750637440423,-543.77,0.00022465,2]
[367049823,1750637440433,-460.0,0.00022465,2]
[367049824,1750637440442,-460.0,0.00022465,2]
[367049825,1750637440452,-460.0,0.00022465,2]
[367049826,1750637440461,-460.0,0.00022465,2]
[367049827,1750637440471,-6734.28,0.00022465,2]
[367049828,1750637440480,-460.0,0.00022465,2]
[367049830,1750637440490,-482.02697208,0.00022465,2]
[367049831,1750637440499,-460.0,0.00022465,2]
[367049832,1750637440509,-6501.89,0.00022465,2]
[367049833,1750637440519,-460.0,0.00022465,2]
[367049834,1750637440530,-2195.08,0.00022465,2]
[367049835,1750637440539,-502.89,0.00022465,2]
[367049836,1750637440548,-1416.17,0.00022465,2]
[367049837,1750637440557,-807.08,0.00022465,2]
[367049838,1750637440566,-460.0,0.00022465,2]
[367049839,1750637440576,-460.0,0.00022465,2]
[367049840,1750637440586,-872.07,0.00022465,2]
[367049841,1750637440595,-471.07,0.00022465,2]
[367049842,1750637440604,-555.51,0.00022465,2]
[367049843,1750637440614,-555.51,0.00022465,2]
[367049844,1750637440623,-5866.52,0.00022465,2]
[367049845,1750637440632,-496.59,0.00022465,2]
[367049846,1750637440641,-4198.34,0.00022465,2]
[367049847,1750637440651,-460.0,0.00022465,2]
[367049848,1750637440660,-460.0,0.00022465,2]
[367049849,1750637440669,-460.0,0.00022465,2]
[367049850,1750637440679,-689.73,0.00022465,2]
[367049851,1750637440688,-7146.33,0.00022465,2]
[367049852,1750637440697,-8131.65,0.00022465,2]
[367049853,1750637440707,-1213.54,0.00022465,2]
[367049854,1750637440716,-1764.07,0.00022465,2]
[367049855,1750637440725,-424.75599261,0.00022465,2]
[367049856,1750637440735,-460.0,0.00022465,2]
[367049857,1750637440744,-460.0,0.00022465,2]
[367049858,1750637440754,-460.0,0.00022465,2]
[367049859,1750637440764,-460.0,0.00022465,2]
[367049860,1750637440774,-3247.53,0.00022465,2]
[367049861,1750637440783,-546.11,0.00022465,2]
[367049862,1750637440792,-1268.62,0.00022465,2]
[367049863,1750637440802,-460.0,0.00022465,2]
[367049864,1750637440811,-460.0,0.00022465,2]
[367049865,1750637440820,-183.37638516,0.00022503,2]
[367049866,1750637440829,-3000.0,0.000227,2]
[367049867,1750637440839,-3000.0,0.0002271,2]
[367049869,1750637441021,-3000.0,0.0002272,2]
[367049870,1750637441032,-3000.0,0.0002273,2]
[367049871,1750637441041,-795.32,0.00022738,3]
[367049872,1750637441051,-162.20263485,0.00022739,2]
[367049873,1750637441060,-460.0,0.00022739,2]
[367049874,1750637441069,-1232.79,0.00022739,2]
[367049875,1750637441079,-460.0,0.00022739,2]
[367049876,1750637441088,-460.0,0.00022739,2]
[367049877,1750637441098,-460.0,0.00022739,2]
[367049878,1750637441107,-460.0,0.00022739,2]
[367049879,1750637441116,-460.0,0.00022739,2]
[367049880,1750637441125,-1164.8,0.00022739,2]
[367049881,1750637441135,-460.0,0.00022739,2]
[367049882,1750637441143,-460.0,0.00022739,2]
[367049883,1750637441154,-460.0,0.00022739,2]
[367049884,1750637441163,-460.0,0.00022739,2]
[367049885,1750637441173,-460.0,0.00022739,2]
[367049886,1750637441182,-521.29,0.00022739,2]
[367049887,1750637441191,-460.0,0.00022739,2]
[367049888,1750637441201,-460.0,0.00022739,2]
[367049889,1750637441210,-348.91041067,0.00022739,2]
[367049890,1750637441220,-460.0,0.00022739,2]
[367049891,1750637441229,-1060.37,0.00022739,3]
[367049892,1750637441238,-460.0,0.00022739,2]
[367049893,1750637441248,-530.18,0.00022739,3]
[367049894,1750637441258,-722.34,0.00022739,2]
[367049895,1750637441268,-265.09,0.00022739,3]
[367049896,1750637441283,-460.0,0.00022739,2]
[367049897,1750637441297,-460.0,0.00022739,2]
[367049898,1750637441311,-460.0,0.00022739,2]
[367049899,1750637441321,-550.59,0.00022739,2]
[367049900,1750637441330,-460.0,0.00022739,2]
[367049901,1750637441340,-460.0,0.00022739,2]
[367049902,1750637441352,-460.0,0.00022739,2]
[367049903,1750637441361,-500.0,0.00022739,2]
[367049904,1750637441371,-460.0,0.00022739,2]
[367049905,1750637441380,-460.0,0.00022739,2]
[367049906,1750637441389,-543.77,0.00022739,2]
[367049907,1750637441399,-201.19503109,0.00022739,2]
[367049908,1750637441409,-460.0,0.00022739,2]
[367049909,1750637441419,-460.0,0.00022739,2]
[367049910,1750637441428,-460.0,0.00022739,2]
[367049911,1750637441438,-460.0,0.00022739,2]
[367049912,1750637441447,-6734.28,0.00022739,2]
[367049913,1750637441458,-460.0,0.00022739,2]
[367049914,1750637441467,-460.0,0.00022739,2]
[367049915,1750637441477,-6501.89,0.00022739,2]
[367049916,1750637441487,-412.97853322,0.00022739,2]
[367049917,1750637441497,-2195.08,0.00022739,2]
[367049918,1750637441507,-502.89,0.00022739,2]
[367049919,1750637441516,-1416.17,0.00022739,2]
[367049920,1750637441527,-807.08,0.00022739,2]
[367049921,1750637441536,-460.0,0.00022739,2]
[367049922,1750637441546,-460.0,0.00022739,2]
[367049923,1750637441555,-872.07,0.00022739,2]
[367049924,1750637441564,-471.07,0.00022739,2]
[367049925,1750637441574,-555.51,0.00022739,2]
[367049926,1750637441583,-555.51,0.00022739,2]
[367049927,1750637441593,-5866.52,0.00022739,2]
[367049928,1750637441602,-496.59,0.00022739,2]
[367049929,1750637441612,-4198.34,0.00022739,2]
[367049930,1750637441622,-460.0,0.00022739,2]
[367049931,1750637441631,-460.0,0.00022739,2]
[367049932,1750637441641,-460.0,0.00022739,2]
[367049933,1750637441650,-689.73,0.00022739,2]
[367049934,1750637441661,-7146.33,0.00022739,2]
[367049935,1750637441671,-8131.65,0.00022739,2]
[367049936,1750637441680,-1213.54,0.00022739,2]
[367049937,1750637441690,-1764.07,0.00022739,2]
[367049938,1750637441699,-460.0,0.00022739,2]
[367049939,1750637441709,-460.0,0.00022739,2]
[367049940,1750637441718,-460.0,0.00022739,2]
[367049941,1750637441728,-460.0,0.00022739,2]
[367049942,1750637441737,-3247.53,0.00022739,2]
[367049943,1750637441747,-546.11,0.00022739,2]
[367049944,1750637441756,-1268.62,0.00022739,2]
[367049945,1750637441766,-460.0,0.00022739,2]
[367049946,1750637441776,-460.0,0.00022739,2]
[367049947,1750637441786,-3000.0,0.0002274,2]
[367049948,1750637441796,-460.0,0.00022749,2]
[367049949,1750637441806,-460.0,0.00022749,2]
[367049950,1750637441815,-768.43,0.00022749,2]
[367049951,1750637441824,-460.0,0.00022749,2]
[367049952,1750637441834,-460.0,0.00022749,2]
[367049953,1750637441843,-460.0,0.00022749,2]
[367049954,1750637441852,-460.0,0.00022749,2]
[367049955,1750637441863,-460.0,0.00022749,2]
[367049956,1750637441873,-460.0,0.00022749,2]
[367049957,1750637441883,-430.0,0.00022749,2]
[367049958,1750637441893,-405.90553827,0.00022749,2]
[367049959,1750637441902,-460.0,0.00022749,2]
[367049960,1750637441912,-518.93534853,0.00022749,2]
[367049961,1750637441921,-460.0,0.00022749,2]
[367049962,1750637441930,-460.0,0.00022749,2]
[367049963,1750637441940,-460.0,0.00022749,2]
[367049964,1750637441949,-460.0,0.00022749,2]
[367049965,1750637441959,-460.0,0.00022749,2]
[367049966,1750637441968,-460.0,0.00022749,2]
[367049967,1750637441978,-460.0,0.00022749,2]
[367049968,1750637441987,-460.0,0.00022749,2]
[367049969,1750637441997,-460.0,0.00022749,2]
[367049970,1750637442007,-460.0,0.00022749,2]
[367049971,1750637442015,-460.0,0.00022749,2]
[367049972,1750637442025,-1549.61,0.00022749,2]
[367049973,1750637442037,-460.0,0.00022749,2]
[367049974,1750637442047,-460.0,0.00022749,2]
[367049975,1750637442057,-460.0,0.00022749,2]
[367049976,1750637442065,-460.0,0.00022749,2]
[367049977,1750637442075,-460.0,0.00022749,2]
[367049978,1750637442084,-460.0,0.00022749,2]
[367049979,1750637442093,-460.0,0.00022749,2]
[367049980,1750637442102,-460.0,0.00022749,2]
[367049981,1750637442111,-460.0,0.00022749,2]
[367049982,1750637442121,-460.0,0.00022749,2]
[367049983,1750637442130,-460.0,0.00022749,2]
[367049984,1750637442139,-514.38027467,0.00022749,2]
[367049985,1750637442148,-460.0,0.00022749,2]
[367049986,1750637442157,-460.0,0.00022749,2]
[367049987,1750637442167,-460.0,0.00022749,2]